[Event "Mitropa Cup Open 2022"]
[Site "Corte"]
[Date "2022.05.05"]
[Round "6.4"]
[White "Pasti, Aron"]
[Black "Haring, Filip"]
[Result "1-0"]
[ECO "B42"]
[WhiteElo "2380"]
[BlackElo "2434"]
[Annotator "TA"]
[PlyCount "121"]
[EventDate "2022.04.30"]
[EventType "team-tourn"]
[EventCountry "FRA"]
[SourceTitle "playchess.com"]
[Source "ChessBase"]
[SourceQuality "1"]
[WhiteTeam "Hungary"]
[BlackTeam "Slovakia"]
[WhiteTeamCountry "HUN"]
[BlackTeamCountry "SVK"]
[TimeControl "40/5400+30:1800+30"]

{[%evp 14,121,34,39,37,34,46,0,0,0,25,20,106,102,137,102,139,138,139,123,148,115,134,60,56,72,64,74,58,60,65,0,25,0,0,22,33,48,83,0,214,137,289,115,115,110,152,152,147,129,139,149,120,145,135,91,105,122,110,101,108,100,93,99,106,103,95,100,117,116,200,181,235,214,269,279,262,300,295,294,254,239,438,420,729,701,560,460,982,820,822,868,873,715,29945,6737,29957,29958,29959,29960,29961,29964,29963,29964,29942,29953,29946,29956,29976,29977]} 1. e4 {[%emt 0:00:02] ChessBase II} c5 {[%emt 0:00:10]} 2. Nf3 {[%emt 0:00:06]} e6 {[%emt 0:00:19]} 3. d4 {[%emt 0:00:08]} cxd4 {[%emt 0:00:08]} 4. Nxd4 {[%emt 0:00:08]} a6 {[%emt 0:00:14]} 5. Bd3 {[%emt 0:00:05]} Bc5 {[%emt 0:00:22]} 6. Nb3 {[%emt 0:00:05]} Ba7 {[%emt 0:00:10]} 7. Qg4 {[%emt 0:00:07]} Nf6 {[%emt 0:00:12]} 8. Qg3 {[%emt 0:00:07] Black must now prevent e5.} d6 {[%emt 0:01:05] B42: Sicilian: Kan Variation: 5 Bd3.} 9. Nc3 {[%emt 0:00:59]} (9. Qxg7 Rg8 10. Qh6 Bxf2+ $1 11. Kd1 Rxg2 $17) 9... Nc6 {[%emt 0:00:49]} 10. Bg5 {[%emt 0:00:20]} (10. Qxg7 Rg8 11. Qh6 Bxf2+ $1 12. Kd1 Rg6 $17) (10. O-O $14) 10... h6 $11 {[%emt 0:07:16] The position is equal.} 11. Bd2 {[%emt 0:01:00]} Ne5 {[%emt 0:02:44]} 12. O-O-O {[%emt 0:27:51]} (12. Qxg7 $2 Ng6 13. e5 (13. Bxh6 $2 Rh7 $19) 13... Nh5 14. Qxh8+ Nxh8 $19) 12... g5 {[%emt 0:12:47]} (12... b5 $11) 13. Be2 $1 $16 {[%emt 0:04:12]} Ng6 {[%emt 0:09:51]} 14. e5 {[%emt 0:23:09]} dxe5 {[%emt 0:21:08] [#]} 15. Bxg5 $1 {[%emt 0:02:04][%mdl 512]} Qe7 {[%emt 0:00:48]} 16. Be3 {[%emt 0:02:44]} b5 {[%emt 0:06:15] [#]} 17. a3 $146 {[%emt 0:16:02]} ({Predecessor:} 17. Bd3 Nf4 18. Bxf4 exf4 19. Qxf4 Bb7 20. Be4 Nxe4 21. Nxe4 Bxe4 22. Qxe4 Rc8 23. f4 {½-½ (44) Di Nicolantonio,L (2393)-Valles,M (2397) Vaujany 2016 EXT 2017 [ChessBase II]}) 17... Bb7 {[%emt 0:07:03]} 18. Na5 {[%emt 0:11:07]} (18. Bxa7 $16 Rxa7 19. Bd3) 18... Ne4 {[%emt 0:05:27]} 19. Nxe4 {[%emt 0:01:10]} Bxe4 {[%emt 0:00:02]} 20. Bf3 {[%emt 0:05:08]} Bxe3+ {[%emt 0:02:18]} 21. fxe3 {[%emt 0:00:05]} Bxf3 {[%emt 0:00:09]} 22. gxf3 {[%emt 0:00:34]} ({White should play} 22. Qxf3 $14 O-O 23. Kb1) 22... Rc8 {[%emt 0:04:05] Hoping for ...Qc7.} 23. Nb3 {[%emt 0:00:05]} a5 {[%emt 0:01:09]} 24. Kb1 {[%emt 0:02:50]} O-O {[%emt 0:01:56]} 25. h4 {[%emt 0:00:24] h5 is the strong threat.} (25. Nxa5 Qc7 26. Qe1 Qxc2+ 27. Ka2 Rfd8 $15) 25... h5 {[%emt 0:00:03]} 26. Qg5 {[%emt 0:01:38]} ({Not} 26. Nxa5 Qc7 27. Qe1 Qxc2+ 28. Ka2 Rfd8 29. Rxd8+ Rxd8 $17) (26. Rdg1 $1 $16) 26... Qc7 {[%emt 0:06:57]} (26... a4 $11 {and Black has nothing to worry.} 27. Nd2 Qxg5 28. hxg5 h4) 27. Na1 {[%emt 0:00:04] Active counter play!} Qc5 $2 {[%emt 0:04:13]} (27... Qb6 $16 28. Rdg1 Rfd8) 28. Qxh5 $2 {[%emt 0:01:10]} (28. Rhg1 $18) 28... Qxe3 {[%emt 0:00:05]} 29. Rhg1 {[%emt 0:00:18] White wants to mate with Rxg6+.} Kg7 {[%emt 0:00:58]} 30. Rde1 {[%emt 0:00:04]} Qf4 {[%emt 0:03:23]} 31. Qxe5+ {[%emt 0:00:29]} Qxe5 {[%emt 0:00:06]} 32. Rxe5 {[%emt 0:00:02]} Rb8 {[%emt 0:00:14]} 33. h5 {[%emt 0:00:54]} Kf6 {[%emt 0:00:03]} 34. Re4 {[%emt 0:00:09]} Ne7 {[%emt 0:01:12]} 35. Nb3 {[%emt 0:00:56]} Rh8 {[%emt 0:00:44]} 36. Rf4+ {[%emt 0:01:38]} Nf5 {[%emt 0:00:05]} 37. Nxa5 {[%emt 0:00:03]} Rxh5 {[%emt 0:00:27]} 38. Rb4 {[%emt 0:00:31]} Ne3 {[%emt 0:02:55]} 39. Nc6 {[%emt 0:00:21]} Rc8 {[%emt 0:01:17]} 40. Nd4 {[%emt 0:00:39]} Rcc5 {[%emt 0:00:50]} 41. Re1 {[%emt 0:07:31]} Nc4 {[%emt 0:08:31] [#]} (41... Ng2 $16 42. Re4 Rhd5) 42. Nxb5 $1 $18 {[%emt 0:05:19]} Nd2+ {[%emt 0:00:12]} (42... Rh2 $142 43. Ka1 e5) 43. Kc1 {[%emt 0:00:06] aiming for Nc3.} Nxf3 {[%emt 0:00:56]} 44. Rf1 {[%emt 0:00:09]} Rxb5 {[%emt 0:01:52]} 45. Rxb5 {[%emt 0:03:12]} ({Don't play} 45. Rxf3+ $6 Rbf5 46. Rxf5+ Kxf5 $16) 45... Rxb5 {[%emt 0:00:06]} 46. Rxf3+ {[%emt 0:00:01][%mdl 4096] Endgame KR-KR} Ke7 {[%emt 0:00:12]} 47. a4 {[%emt 0:01:09][%cal Ba3a4,Ba4a5,Ba5a6,Ba6a7][%mdl 32]} Ra5 {[%emt 0:00:24] [#]} (47... Rb4 48. b3 Rb7) 48. Ra3 $1 {[%emt 0:00:12]} f5 {[%emt 0:00:15]} (48... Kd7 $142 49. b4 Rg5) 49. b4 {[%emt 0:00:05]} Ra8 {[%emt 0:00:04]} 50. a5 {[%emt 0:02:16]} f4 {[%emt 0:01:31]} (50... e5 $142 51. a6 Kd8) 51. Kd2 {[%emt 0:04:02]} Kd6 {[%emt 0:00:49]} 52. Kd3 {[%emt 0:02:25]} Rh8 {[%emt 0:04:29]} 53. Ke4 {[%emt 0:02:18] And now a6 would win.} Rb8 {[%emt 0:01:57]} 54. a6 {[%emt 0:03:45] White threatens a7 and mate.} Rxb4+ {[%emt 0:00:42]} 55. Kf3 {[%emt 0:00:03] White mates.} Rb8 {[%emt 0:00:13]} 56. a7 {[%emt 0:00:06]} Ra8 {[%emt 0:00:03]} 57. Kxf4 {[%emt 0:00:03]} Kd5 {[%emt 0:00:19]} 58. Ke3 {[%emt 0:01:33]} Kc4 {[%emt 0:00:18]} 59. Ke4 {[%emt 0:00:32]} Kb4 {[%emt 0:00:11]} 60. Ra2 {[%emt 0:00:04]} Kc3 {[%emt 0:01:32]} 61. Ke5 {[%emt 0:00:08] Weighted Error Value: White=0.14 (very precise) /Black=0.45} 1-0

[Event "Mitropa Cup Open 2022"]
[Site "Corte"]
[Date "2022.05.05"]
[Round "6.4"]
[White "Frank, Adam"]
[Black "Schreiner, Peter"]
[Result "1/2-1/2"]
[ECO "C71"]
[WhiteElo "2284"]
[BlackElo "2428"]
[Annotator "TA"]
[PlyCount "77"]
[EventDate "2022.04.30"]
[EventType "team-tourn"]
[EventCountry "FRA"]
[SourceTitle "playchess.com"]
[Source "ChessBase"]
[SourceQuality "1"]
[WhiteTeam "Czech Republic"]
[BlackTeam "Austria"]
[WhiteTeamCountry "CZE"]
[BlackTeamCountry "AUT"]
[TimeControl "40/5400+30:1800+30"]

{[%evp 20,77,8,-28,-16,-43,-17,-27,-19,-22,-15,-28,-31,-33,-25,-36,-28,-33,-12,-16,-5,-22,-26,-30,-6,-17,0,0,0,0,0,0,0,-7,-7,-33,-15,-47,-23,-99,-11,-12,-11,-11,-11,-11,0,0,0,0,80,0,0,0,0,0,0,0,0,0]} 1. e4 {[%emt 0:00:02]} e5 {[%emt 0:00:05]} 2. Nf3 {[%emt 0:00:04]} Nc6 {[%emt 0:00:04]} 3. Bb5 {[%emt 0:00:03][%cal Bf1b5,Bb5a4,Ba4b3,Bb3d5][%mdl 32]} a6 {[%emt 0:00:05]} 4. Ba4 {[%emt 0:00:03]} d6 {[%emt 0:00:05]} 5. d4 {[%emt 0:00:07]} b5 {[%emt 0:01:58]} 6. Bb3 {[%emt 0:01:18]} Nxd4 {[%emt 0:00:56]} 7. Nxd4 {[%emt 0:00:05]} exd4 {[%emt 0:00:07]} 8. Bd5 {[%emt 0:00:07]} Rb8 {[%emt 0:03:36]} 9. Qxd4 {[%emt 0:01:53]} Nf6 {[%emt 0:06:05]} 10. O-O {[%emt 0:07:16]} Be7 {[%emt 0:11:38]} 11. a4 {[%emt 0:14:21]} O-O {[%emt 0:02:59] C71: Ruy Lopez: Deferred Steinitz Variation, sidelines.} 12. c3 {[%emt 0:03:03]} Bd7 {[%emt 0:23:42]} 13. axb5 {[%emt 0:02:22]} axb5 {[%emt 0:01:07] [#] Black has an edge.} 14. Bf4 $146 {[%emt 0:04:09]} ({Predecessor:} 14. Qd3 Nxd5 15. exd5 Bf6 16. Be3 b4 17. Bd4 bxc3 18. bxc3 Re8 19. Ra7 Bxd4 20. Qxd4 {1-0 (36) Argyo,N (2051)-Ghinea,C (1835) Miercurea Ciuc 2007}) 14... Nxd5 {[%emt 0:08:39]} 15. exd5 {[%emt 0:00:24]} Bf6 {[%emt 0:03:57]} 16. Qb4 {[%emt 0:06:25]} Qc8 {[%emt 0:03:13]} 17. Nd2 {[%emt 0:17:28]} Qb7 {[%emt 0:00:28]} 18. Qe4 {[%emt 0:00:17]} b4 {[%emt 0:03:48]} 19. Qf3 {[%emt 0:00:12]} Rfe8 {[%emt 0:08:57]} 20. Rfe1 {[%emt 0:12:44]} bxc3 {[%emt 0:03:08]} 21. bxc3 {[%emt 0:00:03]} Qb2 {[%emt 0:00:49]} (21... Ra8 $5 {[%cal Ra8a1]}) 22. Ne4 {[%emt 0:05:01]} Be5 {[%emt 0:00:44]} 23. Bxe5 {[%emt 0:02:40]} Rxe5 {[%emt 0:00:56]} 24. Qd3 {[%emt 0:00:06] [#] Inhibits Qc2. Black must now prevent Reb1.} Qb7 {[%emt 0:05:19] Strongly threatening ...Rbe8.} 25. Reb1 {[%emt 0:00:11]} Qc8 {[%emt 0:00:26]} 26. Rxb8 {[%emt 0:01:11]} Qxb8 {[%emt 0:00:07]} 27. f4 {[%emt 0:00:17]} Re8 {[%emt 0:01:03]} 28. Ng5 {[%emt 0:03:23]} Qb6+ {[%emt 0:02:36]} 29. Kh1 {[%emt 0:00:08]} (29. Kf1 $1 $11 g6 30. Ne4) 29... f5 {[%emt 0:00:35]} ({Black should play} 29... g6 $17 {next ...Qf2 is good for Black.} 30. Qd2 Qe3 31. Qxe3 Rxe3) 30. h3 $11 {[%emt 0:04:30]} h6 {[%emt 0:01:12]} 31. Ne6 {[%emt 0:01:18]} Bxe6 {[%emt 0:03:00]} 32. dxe6 {[%emt 0:00:04][%mdl 4096] Endgame KQR-KQR} Qb3 {[%emt 0:01:31]} 33. Ra7 {[%emt 0:01:07]} ({But not} 33. e7 Qe6 34. c4 Rxe7 $17) 33... Qxe6 {[%emt 0:01:20]} 34. Rxc7 {[%emt 0:00:08]} Rc8 {[%emt 0:01:25]} (34... h5 $11) 35. Ra7 {[%emt 0:11:49] White is more active.} ({White should try} 35. Rxc8+ $16 Qxc8 36. Qxd6) 35... Kh8 {[%emt 0:00:40] The position is equal.} 36. Qd4 {[%emt 0:00:40][%csl Ga7][%cal Rd4g7] [#]} Qe1+ {[%emt 0:00:32]} 37. Kh2 {[%emt 0:00:03][%csl Ga7][%cal Rd4g7]} Qxc3 {[%emt 0:00:09]} 38. Qxd6 {[%emt 0:00:06]} Qc6 {[%emt 0:01:42]} 39. Qxc6 {[%emt 0:01:19] Weighted Error Value: White=0.13 (very precise) /Black=0.15 (very precise)} 1/2-1/2

[Event "Mitropa Cup Open 2022"]
[Site "Corte"]
[Date "2022.05.05"]
[Round "6.5"]
[White "Moroni, Luca Jr"]
[Black "Moussard, Jules"]
[Result "0-1"]
[ECO "D35"]
[WhiteElo "2581"]
[BlackElo "2651"]
[Annotator "TA"]
[PlyCount "92"]
[EventDate "2022.04.30"]
[EventType "team-tourn"]
[EventCountry "FRA"]
[SourceTitle "playchess.com"]
[Source "ChessBase"]
[SourceQuality "1"]
[WhiteTeam "Italy"]
[BlackTeam "France"]
[WhiteTeamCountry "ITA"]
[BlackTeamCountry "FRA"]
[TimeControl "40/5400+30:1800+30"]

{[%evp 15,92,13,21,13,14,16,25,24,6,12,14,16,18,18,17,12,12,0,18,-25,-31,-31,-27,-47,-36,-81,-67,-65,-69,-75,-60,-85,-56,-83,-80,-87,-96,-123,-111,-164,-117,-131,-103,-177,-131,-289,-282,-274,-248,-330,-316,-385,-382,-351,-329,-352,-359,-417,-410,-721,-362,-685,-687,-1779,-1595,-1701,-1661,-1594,-1506,-1740,-1611,-29985,-29986,-29991,-29992,-29995,-29996,-29997,-1033]} 1. c4 {[%emt 0:00:03]} e6 {[%emt 0:00:17]} 2. Nc3 {[%emt 0:00:04]} d5 {[%emt 0:00:07]} 3. d4 {[%emt 0:00:05]} Nf6 {[%emt 0:00:24]} 4. cxd5 {[%emt 0:00:04]} exd5 {[%emt 0:00:06]} 5. Bg5 {[%emt 0:00:04]} c6 {[%emt 0:00:12]} 6. e3 {[%emt 0:00:03]} h6 {[%emt 0:00:41]} 7. Bh4 {[%emt 0:00:04]} Be7 {[%emt 0:00:06]} 8. Bd3 {[%emt 0:00:04]} O-O {[%emt 0:00:28]} 9. Bg3 {[%emt 0:00:07] 9.Nge2 gains popularity. D35: Queen's Gambit Declined: Exchange Variation.} Re8 {[%emt 0:04:15]} (9... Bg4 {keeps more tension.} 10. Nge2 Nh5 11. Be5 Nd7) 10. h3 {[%emt 0:01:23]} Bd6 {[%emt 0:03:21]} (10... c5 {feels hotter.} 11. dxc5 d4 12. exd4 Bxc5+ 13. Nge2 Bxd4 14. O-O Nc6) 11. Bxd6 {[%emt 0:00:25] White has an edge.} Qxd6 {[%emt 0:00:07]} 12. Nf3 {[%emt 0:00:03] [#]} Nbd7 $146 {[%emt 0:06:13]} ({Predecessor:} 12... Ne4 13. Bxe4 dxe4 14. Nd2 Qg6 15. g4 Na6 16. Qb3 c5 17. Qb5 Rd8 18. dxc5 Bd7 {0-1 (50) Omelja,A (2499)-Bluebaum,M (2670) Chess.com INT 2021}) 13. Qc2 {[%emt 0:00:21]} b6 {[%emt 0:08:18]} 14. O-O {[%emt 0:00:31]} Bb7 {[%emt 0:02:19]} 15. Rad1 {[%emt 0:00:11]} c5 {[%emt 0:08:36]} 16. Bb5 {[%emt 0:00:57]} c4 {[%emt 0:05:03]} 17. Ne5 {[%emt 0:15:32][%cal Oe3e4]} a6 {[%emt 0:11:04]} 18. Bxd7 {[%emt 0:00:30]} Nxd7 {[%emt 0:00:05]} 19. f4 {[%emt 0:08:52]} b5 {[%emt 0:04:53]} 20. g4 {[%emt 0:07:49]} f6 {[%emt 0:02:50]} 21. Nxd7 {[%emt 0:05:04]} Qxd7 {[%emt 0:00:05]} 22. Rf3 {[%emt 0:00:24]} Bc6 {[%emt 0:03:29]} 23. Ne2 {[%emt 0:08:07][%cal Og4g5]} Qd6 {[%emt 0:01:45]} 24. Kf2 {[%emt 0:04:49]} Bd7 {[%emt 0:01:47]} 25. Rg1 {[%emt 0:04:49]} b4 {[%emt 0:03:22]} 26. h4 {[%emt 0:14:27] [#]} Rf8 $1 {[%emt 0:00:05]} 27. Qc1 {[%emt 0:07:14]} (27. Qg6 $17 {was called for.}) 27... Rac8 {[%emt 0:01:03]} (27... a5 $19 28. Qd2 a4) 28. Rfg3 {[%emt 0:02:58]} c3 {[%emt 0:04:32] Black is more active.} 29. b3 {[%emt 0:01:52]} (29. bxc3 $17 {was worth a try.} bxc3 30. Qc2 (30. Nxc3 $2 Rc4 $19)) 29... Bb5 $19 {[%emt 0:03:23]} 30. g5 $2 {[%emt 0:07:25] White does not recover from this.} (30. Qc2 $17 {might work better.}) 30... fxg5 {[%emt 0:00:32]} 31. hxg5 {[%emt 0:00:02]} h5 {[%emt 0:01:50]} 32. Qc2 {[%emt 0:03:33]} Bd7 {[%emt 0:04:59]} 33. g6 {[%emt 0:02:19]} Bf5 {[%emt 0:01:47]} 34. Qc1 {[%emt 0:00:01]} Rf6 {[%emt 0:06:15]} 35. Rg5 {[%emt 0:00:42]} Bg4 {[%emt 0:01:08]} ({Weaker is} 35... Bxg6 36. Qf1 $11) 36. Qc2 {[%emt 0:03:02]} Re8 {[%emt 0:01:47] And now ...Bxe2 would win. The board is on fire.} 37. Qd3 {[%emt 0:02:46]} (37. Rf1 $142) 37... Re4 {[%emt 0:04:12]} 38. R5xg4 $2 {[%emt 0:01:25]} (38. Re5 Rxe5 39. dxe5 Qxe5 40. Nd4) 38... hxg4 {[%emt 0:00:05]} 39. Ng3 {[%emt 0:00:05] [#]} Rfxf4+ {[%emt 0:01:14][%mdl 512]} 40. Kg2 {[%emt 0:01:38] [#]} Rxd4 $3 {[%emt 0:06:13][%mdl 512]} 41. exd4 {[%emt 0:01:11]} Rf3 {[%emt 0:00:04][%mdl 64] Discovered Attack, Double Attack} 42. Nf5 {[%emt 0:02:31]} Qe6 {[%emt 0:01:03]} ({Less strong is} 42... Rxd3 43. Nxd6 Rxd4 44. Kg3 Rd3+ 45. Kxg4 $16) 43. Ne7+ {[%emt 0:01:43]} Qxe7 {[%emt 0:00:21] Black mates.} 44. Qxa6 {[%emt 0:00:09]} Qe4 {[%emt 0:00:04]} 45. Re1 {[%emt 0:00:26]} Re3+ {[%emt 0:00:04]} (45... Qxe1 46. Qa8+) 46. Kh2 {[%emt 0:00:11]} Rh3+ {[%emt 0:00:04] Weighted Error Value: White=0.62/Black=0.22 (precise)} 0-1

[Event "Mitropa Cup Open 2022"]
[Site "Corte"]
[Date "2022.05.05"]
[Round "6.5"]
[White "Baenziger, Fabian"]
[Black "Piscopo, Pierluigi"]
[Result "1-0"]
[ECO "A61"]
[WhiteElo "2430"]
[BlackElo "2347"]
[Annotator "TA"]
[PlyCount "61"]
[EventDate "2022.04.30"]
[EventType "team-tourn"]
[EventCountry "FRA"]
[SourceTitle "playchess.com"]
[Source "ChessBase"]
[SourceQuality "1"]
[WhiteTeam "Switzerland"]
[BlackTeam "France"]
[WhiteTeamCountry "SUI"]
[BlackTeamCountry "ITA"]
[TimeControl "40/5400+30:1800+30"]

{[%evp 15,61,28,29,39,82,68,64,45,41,43,43,47,53,29,29,19,57,34,59,56,73,67,200,211,201,190,373,365,378,368,433,431,456,398,490,499,499,488,481,482,585,551,633,601,543,495,968,960]} 1. d4 {[%emt 0:00:06]} Nf6 {[%emt 0:00:09]} 2. c4 {[%emt 0:00:06]} e6 {[%emt 0:00:06]} 3. Nf3 {[%emt 0:00:16]} c5 {[%emt 0:03:52]} 4. d5 {[%emt 0:00:21]} d6 {[%emt 0:00:16]} 5. Nc3 {[%emt 0:00:36]} exd5 {[%emt 0:01:13]} 6. cxd5 {[%emt 0:00:13]} g6 {[%emt 0:00:07]} 7. Bf4 {[%emt 0:00:34]} Bg7 {[%emt 0:01:08]} 8. Qa4+ {[%emt 0:00:50]} Bd7 {[%emt 0:01:00]} 9. Qb3 {[%emt 0:00:05] A61: Modern Benoni: Nf3 without early e4.} O-O {[%emt 0:00:05][%cal Ob7b5] 9...b5 is becoming the main line.} 10. Bxd6 {[%emt 0:05:21]} Ba4 {[%emt 0:03:10]} 11. Qxa4 {[%emt 0:07:16] White is more active. White is slightly better.} Qxd6 {[%emt 0:00:20]} 12. Rd1 {[%emt 0:10:47]} Nbd7 {[%emt 0:23:06]} 13. e3 {[%emt 0:14:30]} a6 {[%emt 0:01:43]} 14. Be2 {[%emt 0:00:29]} b5 {[%emt 0:00:06]} 15. Qc2 {[%emt 0:00:17]} Rfe8 {[%emt 0:29:20]} ({Don't take} 15... b4 16. Na4 $16) 16. O-O {[%emt 0:15:46]} Nb6 {[%emt 0:06:23][%cal Rf6d5]} 17. a4 {[%emt 0:07:51]} b4 {[%emt 0:05:40] [#]} 18. Nb1 $146 {[%emt 0:01:46][%cal Bc3b1,Bb1d2,Bd2c4][%mdl 32]} ({But not} 18. a5 bxc3 19. axb6 cxb2 20. Qxb2 Ne4 $11) ({Predecessor:} 18. a5 bxc3 19. axb6 cxb2 20. Nd2 Qxb6 21. Nc4 Qb4 22. Qxb2 Nxd5 23. Qxb4 Nxb4 24. Rd7 {0-1 (48) Kazakovskiy,V (2473)-Indjic,A (2618) Chess.com INT 2020}) 18... Rad8 {[%emt 0:16:30] Loses the game.} (18... Nfxd5 $2 19. a5 $18) (18... Qd7 $14) 19. Bxa6 $18 {[%emt 0:04:53]} Nbxd5 {[%emt 0:00:12]} 20. Bb5 {[%emt 0:01:01]} Qe7 {[%emt 0:01:51] [#]} (20... Re7 {was necessary.} 21. Nbd2 Qc7) 21. Bxe8 {[%emt 0:02:51]} Rxe8 {[%emt 0:00:07]} 22. Nbd2 {[%emt 0:00:16]} Qa7 {[%emt 0:00:40]} 23. Nc4 {[%emt 0:00:52]} Rb8 {[%emt 0:00:04]} 24. Qb3 {[%emt 0:00:41]} Qc7 {[%emt 0:00:54]} 25. Rd3 {[%emt 0:01:32] White is clearly winning.} Nb6 {[%emt 0:00:32]} 26. Rfd1 {[%emt 0:00:17]} Nxc4 {[%emt 0:00:11]} 27. Qxc4 {[%emt 0:00:04] [#] Black must now prevent e4.} h5 {[%emt 0:00:14]} 28. h3 Re8 29. b3 {[%emt 0:03:34]} Bf8 {[%emt 0:01:05]} 30. Nd2 {[%emt 0:01:38]} Nd7 {[%emt 0:00:14]} (30... Qe5 $142 31. Qb5 Qc7) 31. Ne4 {[%emt 0:00:16] Weighted Error Value: White=0.11 (very precise) /Black=0.45} 1-0